fUSD/lending_fUSD_20250423
["ID","MTS","AMOUNT","RATE_DAILY","PERIOD"]
[358704103,1745393234669,-900.0,0.00019896,2]
[358704104,1745393234692,-1642.68,0.00019897,2]
[358704105,1745393235029,-150.0,0.00019922,2]
[358704106,1745393235054,-150.0,0.00019971,2]
[358704107,1745393235078,-503.19573068,0.00019973,2]
[358704108,1745393235100,-500.0,0.00019973,2]
[358704109,1745393235122,-1310.1374111,0.00019986,2]
[358704110,1745393235144,-4476.4156564,0.00019986,2]
[358704111,1745393235168,-42125.5773805,0.00019986,2]
[358704112,1745393235195,-833738.20240253,0.0002,2]
[358704113,1745393235217,-650.53048022,0.0002,2]
[358704114,1745393235241,-188.8068777,0.0002,2]
[358704115,1745393235263,-33823.98655008,0.0002,2]
[358704116,1745393235285,-204.81240716,0.0002,2]
[358704117,1745393235312,-257425.21909272,0.0002,2]
[358704118,1745393235336,-870551.95003132,0.0002,2]
[358704119,1745393235358,-7209.26424531,0.0002,2]
[358704120,1745393235380,-158.0,0.0002,2]
[358704121,1745393235401,-259.6836861,0.0002,2]
[358704122,1745393288274,6322.183435,7.945e-05,2]
[358704140,1745393432490,-656.85657338,0.000199,2]
[358704141,1745393432503,-1842.67399742,0.000199,2]
[358704142,1745393432512,-900.0,0.00019985,2]
[358704143,1745393432522,-300.0,0.00019985,2]
[358704144,1745393432532,-4279.5655155,0.00019986,2]
[358704145,1745393432542,-8100.42391058,0.00019986,2]
[358704146,1745393432598,-3765.19850992,0.00019986,2]
[358704147,1745393432644,-2412.44813529,0.00019986,2]
[358704148,1745393432672,-7933.5579185,0.00019986,2]
[358704160,1745393438765,-18061.47887691,0.00019986,2]
[358704161,1745393438776,-1252.524188,0.00019986,2]
[358704162,1745393438786,-457584.67629528,0.0002,2]
[358704163,1745393438798,-614638.99857209,0.0002,2]
[358704276,1745393447158,-279.4638001,0.000199,2]
[358704277,1745393447203,-1415.79810418,0.000199,2]
[358704278,1745393447214,-287.73809572,0.000199,2]
[358704279,1745393447223,-8594.76190428,0.0002,2]
[358704280,1745393447234,-536.04114452,0.0002,2]
[358704285,1745393527797,799.378959,7.945e-05,2]
[358704291,1745393859683,-178.56,0.00019175,2]
[358704292,1745393869276,-321.44,0.00019175,2]
[358704293,1745393869302,-178.56,0.00019175,2]
[358704294,1745393871947,-254.01131161,0.00019175,2]
[358704295,1745393889755,-67.42868839,0.00019175,2]
[358704296,1745393889779,-176.44300595,0.00019175,2]
[358704297,1745393901899,-300.0,0.00019175,2]
[358704298,1745393937356,-281.7979,0.00019079,2]
[358704299,1745393957649,-150.0,0.00019079,2]
[358704300,1745393968215,-164.52263386,0.00019033,2]
[358704301,1745393970763,500.0,0.00019088,7]
[358704302,1745394013807,1912.278318,0.00018937,2]
[358704303,1745394015874,-267.2433,0.00019033,2]
[358704304,1745394039247,150.0,0.00018948,2]
[358704307,1745394078193,-293.21066855,0.00019075,2]
[358704308,1745394103731,1769.87,0.00016939,2]
[358704309,1745394170768,5357.15,0.00018891,2]
[358704312,1745394188903,-200.38864745,0.00019075,2]
[358704315,1745394200132,442.9,0.00018851,2]
[358704320,1745394243159,-212.20954087,0.00019075,2]
[358704323,1745394261350,-21.83140235,0.00019075,2]
[358704324,1745394261372,-145.96140195,0.00019075,2]
[358704325,1745394297602,-21.83140235,0.00019075,2]
[358704326,1745394297628,-157.09192135,0.00019075,2]
[358704327,1745394298699,901.72,0.00018818,2]
[358704329,1745394332134,733.9887346,0.00037808,60]
[358704330,1745394340347,200.0,0.00018833,2]
[358704331,1745394341245,-55.11761952,0.00019075,2]
[358704332,1745394341275,-94.88238048,0.00019093,2]
[358704334,1745394345186,346.716128,0.00018979,2]
[358704335,1745394357997,150.0,0.00018997,2]
[358704336,1745394428361,1390.53,0.00018864,2]
[358704337,1745394456915,243.87,0.00018802,2]
[358704342,1745394604159,-233.14405613,0.00019102,2]
[358704343,1745394618881,-167.7928043,0.00019075,2]
[358704344,1745394621094,17134.965554,0.00018802,2]
[358704345,1745394621120,6765.034446,0.00018802,2]
[358704372,1745394631759,-16.85594387,0.00019102,2]
[358704373,1745394631770,-154.06766927,0.00019111,2]
[358704374,1745394631779,-1247.41826695,0.00019133,2]
[358704375,1745394631947,-380.94173305,0.00019133,2]
[358704376,1745394631957,-23.55699405,0.00019175,2]
[358704377,1745394631967,-500.0,0.00019175,2]
[358704378,1745394631977,-414.22874689,0.00019175,2]
[358704379,1745394631987,-579.14337039,0.00019203,2]
[358704685,1745394637860,-1190.72662961,0.00019203,2]
[358704686,1745394637870,-185.12891572,0.00019445,2]
[358704688,1745394638030,-64.87108428,0.00019445,2]
[358704690,1745394638041,-151.17,0.000195,2]
[358704692,1745394638050,-900.0,0.000195,2]
[358704693,1745394638060,-203.0,0.00019501,2]
[358704695,1745394638070,-185.0,0.00019501,2]
[358704698,1745394638080,-747.45891572,0.00019503,2]
[358704741,1745394640600,-252.54108428,0.00019503,2]
[358704742,1745394640610,-469.62891572,0.000196,2]
[358704796,1745394645647,-530.37108428,0.000196,2]
[358704798,1745394645657,-150.0,0.00019601,2]
[358704800,1745394645667,-204.81240716,0.00019627,2]
[358704802,1745394645677,-7477.03645049,0.00019627,2]
[358704804,1745394645688,-7786.24354951,0.00019627,2]
[358704806,1745394645697,-150.99,0.00019627,2]
[358704808,1745394645707,-500.0,0.00019644,2]
[358704810,1745394645716,-150.0,0.00019677,2]
[358704812,1745394645726,-150.0,0.00019683,2]
[358704814,1745394645736,-150.0,0.00019689,2]
[358704816,1745394645745,-150.0,0.00019694,2]
[358704818,1745394645755,-150.0,0.00019696,2]
[358704820,1745394645764,-169.32,0.00019697,2]
[358704822,1745394645773,-1642.68,0.00019697,2]
[358704824,1745394645783,-1894.0,0.000197,2]
[358704826,1745394645792,-150.0,0.00019711,2]
[358704828,1745394645801,-150.0,0.00019712,2]
[358704830,1745394645811,-150.0,0.00019716,2]
[358704832,1745394645820,-150.0,0.00019716,2]
[358704834,1745394645829,-150.0,0.00019734,2]
[358704836,1745394645839,-150.0,0.00019734,2]
[358704837,1745394645849,-150.0,0.00019739,2]
[358704839,1745394645859,-150.0,0.0001974,2]
[358704841,1745394645870,-150.0,0.00019741,2]
[358704844,1745394645880,-150.0,0.00019742,2]
[358704845,1745394645890,-150.0,0.00019743,2]
[358704847,1745394645900,-150.0,0.00019745,2]
[358704849,1745394645910,-150.0,0.0001975,2]
[358704852,1745394645920,-150.0,0.00019758,2]
[358704853,1745394645930,-150.0,0.0001976,2]
[358704855,1745394645939,-150.0,0.00019763,2]
[358704857,1745394645949,-150.0,0.00019778,2]
[358704859,1745394645960,-302.1877128,0.00019779,2]
[358704861,1745394645970,-150.0,0.0001978,2]
[358704863,1745394645980,-150.0,0.00019784,2]
[358704865,1745394645990,-150.0,0.00019784,2]
[358704868,1745394646001,-150.0,0.00019787,2]
[358704869,1745394646011,-150.0,0.0001979,2]
[358704871,1745394646021,-150.0,0.00019796,2]
[358704873,1745394646030,-150.0,0.000198,2]
[358704875,1745394646041,-150.0,0.00019802,2]
[358704877,1745394646051,-150.0,0.00019805,2]
[358704879,1745394646060,-150.0,0.00019807,2]
[358704881,1745394646071,-150.0,0.00019812,2]
[358704883,1745394646081,-150.0,0.00019812,2]
[358704885,1745394646091,-150.0,0.00019813,2]
[358704887,1745394646101,-150.0,0.00019813,2]
[358704889,1745394646111,-150.0,0.00019813,2]
[358704891,1745394646121,-150.0,0.00019814,2]
[358704892,1745394646130,-150.0,0.00019815,2]
[358704893,1745394646140,-150.0,0.00019816,2]
[358704894,1745394646150,-150.0,0.00019817,2]
[358704895,1745394646160,-150.0,0.00019827,2]
[358704896,1745394646170,-150.0,0.00019827,2]
[358704897,1745394646181,-3261.67,0.00019831,2]
[358704898,1745394646191,-500.0,0.00019836,2]
[358704899,1745394646201,-150.0,0.00019837,2]
[358704900,1745394646211,-150.0,0.00019842,2]
[358704901,1745394646221,-150.0,0.00019846,2]
[358704902,1745394646232,-150.0,0.00019849,2]
[358704903,1745394646243,-150.0,0.00019851,2]
[358704904,1745394646253,-150.0,0.00019851,2]
[358704905,1745394646264,-150.0,0.00019853,2]
[358704906,1745394646275,-150.0,0.00019853,2]
[358704907,1745394646286,-150.0,0.00019866,2]
[358704908,1745394646296,-150.0,0.00019867,2]
[358704909,1745394646307,-150.0,0.00019874,2]
[358704910,1745394646317,-150.0,0.0001988,2]
[358704911,1745394646327,-150.0,0.00019881,2]
[358704912,1745394646338,-150.0,0.00019893,2]
[358704913,1745394646349,-150.0,0.000199,2]
[358704914,1745394646362,-1999.6244567,0.000199,2]
[358704915,1745394646373,-150.0,0.00019901,2]
[358704916,1745394646383,-150.0,0.00019906,2]
[358704917,1745394646394,-150.0,0.0001991,2]
[358704918,1745394646404,-150.0,0.00019913,2]
[358704919,1745394646415,-150.0,0.00019918,2]
[358704920,1745394646425,-150.0,0.00019924,2]
[358704921,1745394646436,-150.0,0.00019927,2]
[358704922,1745394646446,-150.0,0.00019934,2]
[358704923,1745394646456,-182.06222703,0.00019935,2]
[358704925,1745394646466,-503.19573068,0.00019973,2]
[358704927,1745394646475,-3959.3194179,0.00019986,2]
[358704929,1745394646485,-8826.32766095,0.00019986,2]
[358704946,1745394903126,500.0,0.00037808,60]
[358704947,1745395005397,500.0,0.00019616,7]
[358704949,1745395240695,282.47,0.00018894,2]
[358704950,1745395296043,500.0,0.00018875,2]
[358704951,1745395300583,221.45,0.00018875,2]
[358704952,1745395305477,1592.88,0.00016957,2]
[358704953,1745395444509,199.39,0.00037808,60]
[358704954,1745395460932,247.19,0.0001886,2]
[358704955,1745395476879,-1592.88,0.00019221,2]
[358704956,1745395476908,-250.0,0.00019616,2]
[358704957,1745395476934,-156.150405,0.00019616,2]
[358704958,1745395476959,-194.42542069,0.00019634,2]
[358704959,1745395476986,-150.0,0.00019717,2]
[358704960,1745395477013,-150.0,0.00019724,2]
[358704961,1745395477039,-150.0,0.00019734,2]
[358704962,1745395477064,-150.0,0.00019735,2]
[358704963,1745395477090,-150.0,0.00019745,2]
[358704964,1745395477115,-634.33728717,0.0001976,2]
[358704965,1745395477139,-150.0,0.00019761,2]
[358704966,1745395477164,-150.0,0.00019768,2]
[358704967,1745395477187,-150.0,0.00019776,2]
[358704968,1745395477209,-150.0,0.0001979,2]
[358704969,1745395477232,-150.0,0.00019825,2]
[358704970,1745395477255,-150.0,0.00019826,2]
[358704971,1745395477278,-150.0,0.00019829,2]
[358704972,1745395477301,-150.0,0.00019845,2]
[358704973,1745395477325,-150.0,0.00019847,2]
[358704974,1745395477348,-708.0,0.00019849,2]
[358704975,1745395477370,-6639.20688714,0.0001985,2]
[358704976,1745395739389,-23900.0,0.00019448,2]
[358704981,1745395831686,-150.0,0.00019721,2]
[358704982,1745395831697,-150.0,0.00019732,2]
[358704983,1745395831709,-185.0,0.0001976,2]
[358704984,1745395831722,-1656.17457932,0.0001976,2]
[358704985,1745395831735,-150.0,0.00019764,2]
[358704986,1745395831750,-150.0,0.00019829,2]
[358704987,1745395831761,-6463.3058769,0.0001985,2]
[358704988,1745395831771,-11289.25053596,0.0001986,2]
[358704989,1745395831788,-1158.87808405,0.0001986,2]
[358704990,1745395831802,-37603.0,0.0001986,2]
[358704991,1745395831813,-1550.60000001,0.0001986,2]
[358704992,1745395831950,-470.69720462,0.0001986,2]
[358704993,1745395832080,-45581.73417536,0.0001986,2]
[358704994,1745395832091,-1599.6995653,0.000199,2]
[358704995,1745395832101,-1000.0,0.000199,2]
[358704996,1745395832111,-6474.7207,0.000199,2]
[358704997,1745395832121,-614.28488188,0.000199,2]
[358704999,1745395832131,-500.0,0.000199,2]
[358705001,1745395832141,-1000.0,0.000199,2]
[358705003,1745395832150,-2072.17789943,0.000199,2]
[358705006,1745395832177,-427.82210057,0.000199,2]
[358705008,1745395832187,-248.23,0.0001993,2]
[358705011,1745395832196,-150.0,0.00019937,2]
[358705014,1745395832206,-150.0,0.00019963,2]
[358705017,1745395832215,-500.0,0.00019973,2]
[358705020,1745395832225,-500.0,0.00019973,2]
[358705023,1745395832235,-500.0,0.00019973,2]
[358705027,1745395832244,-500.0,0.00019973,2]
[358705029,1745395832254,-500.0,0.00019973,2]
[358705032,1745395832263,-1738.15441073,0.00019986,2]
[358705037,1745395832277,-1305.0,0.00019986,2]
[358705067,1745395837927,-751.57047117,0.00019986,2]
[358705068,1745395837937,-1340.5631862,0.00019986,2]
[358705069,1745395837948,-612.42634263,0.00019986,2]
[358705070,1745395837984,-446.79634999,0.00019986,2]
[358705213,1745395839982,-2255.80049,0.00019986,2]
[358705222,1745395840222,-971.09933904,0.00019986,2]
[358705223,1745395840234,-311.98859661,0.00019986,2]
[358705224,1745395840247,-4694.408578,0.00019986,2]
[358705225,1745395840406,-636.0425114,0.00019986,2]
[358705226,1745395840419,-464.03396,0.00019986,2]
[358705227,1745395840470,-788.7241764,0.00019986,2]
[358705228,1745395840483,-9382.8,0.00019986,2]
[358705250,1745395845759,-9391.2,0.00019986,2]
[358705251,1745395845839,-12538.39183993,0.00019986,2]
[358705252,1745395845850,-186.86208098,0.00019999,2]
[358705253,1745395845863,-196.40921824,0.00019999,2]
[358705254,1745395845877,-40377.18933295,0.0002,2]
[358705255,1745395845895,-268.1759996,0.0002,2]
[358705262,1745395846208,-37621.91142316,0.0002,2]
[358705321,1745396506278,1469.6,0.00018029,2]
[358705322,1745396600776,764.0,0.00037808,60]
[358705324,1745396711146,1623.50158631,0.000154,2]
[358705326,1745396771279,1775.60042976,8e-05,2]
[358705327,1745396794928,1975.35391314,0.00015,2]
[358705330,1745396934842,179.47099439,0.00013368,2]
[358705335,1745396963359,-3683.721906,0.00019433,2]
[358705336,1745396963384,-250.0,0.00019531,2]
[358705337,1745396963407,-3447.23539359,0.0001968,2]
[358705338,1745396963429,-185.35651561,0.00019787,2]
[358705339,1745396963450,-5000.0,0.00019888,2]
[358705340,1745396963473,-1279.7596523,0.000199,2]
[358705341,1745396963495,-435.6213,0.000199,2]
[358705342,1745396963517,-1147.6914,0.000199,2]
[358705343,1745396963540,-3014.4883,0.000199,2]
[358705344,1745396963563,-307.65464979,0.000199,2]
[358705345,1745396963586,-2752.76173213,0.000199,2]
[358705346,1745396963608,-561.55039679,0.000199,2]
[358705347,1745396963632,-2500.0,0.000199,2]
[358705348,1745396963671,-1062.85482071,0.00019956,2]
[358705349,1745396963698,-23900.0,0.00019966,2]
[358705350,1745396963727,-223.4,0.00019966,2]
[358705351,1745396963753,-629.6199577,0.00019986,2]
[358705352,1745396963778,-2097.442,0.00019986,2]
[358705353,1745396963802,-47349.8112884,0.00019986,2]
[358705354,1745396963825,-4251.7539047,0.00019986,2]
[358705355,1745396963848,-158.0,0.00019988,2]
[358705356,1745396963872,-259.6836861,0.00019988,2]
[358705357,1745396963897,-500.0,0.00019999,2]
[358705358,1745396963920,-300.0,0.00019999,2]
[358705359,1745396963943,-500.0,0.00019999,2]
[358705360,1745396963967,-666.0,0.00019999,2]
[358705361,1745396963990,-970.0688,0.00019999,2]
[358705362,1745396964013,-196.90854491,0.00019999,2]
[358705363,1745396964037,-188547.60859382,0.0002,2]
[358705364,1745396964061,-188.82575839,0.0002,2]
[358705365,1745396964087,-27190.00203053,0.0002,2]
[358705366,1745396964109,-557.7344,0.0002,2]
[358705367,1745396964132,-5000.0,0.0002,2]
[358705368,1745396964155,-8024.58612153,0.0002,2]
[358705369,1745396964188,-694046.98544712,0.0002,2]
[358705377,1745397031838,-174.02303647,0.000199,2]
[358705380,1745397031851,-205.72885803,0.000199,2]
[358705382,1745397031863,-340.2881055,0.000199,2]
[358705383,1745397031879,-683.5196163,0.000199,2]
[358705384,1745397031891,-1772.80416617,0.000199,2]
[358705385,1745397031904,-663.34532652,0.000199,2]
[358705386,1745397031916,-2191.30544765,0.00019966,2]
[358705387,1745397031947,-6943.40455235,0.00019966,2]
[358705388,1745397031959,-549.85559879,0.00019973,2]
[358705389,1745397031970,-500.0,0.00019973,2]
[358705390,1745397031982,-1899.64567616,0.00019986,2]
[358705391,1745397032022,-159.09768994,0.00019986,2]
[358705392,1745397032034,-280.88233884,0.0001999,2]
[358705393,1745397032048,-280.88233884,0.0001999,2]
[358705394,1745397032060,-655.9656458,0.00019999,2]
[358705395,1745397032072,-5581.07198334,0.0002,2]
[358705396,1745397032091,-572.8681494,0.0002,2]
[358705397,1745397032117,-2105.12111376,0.0002,2]
[358705581,1745397038011,-563.94852852,0.0002,2]
[358705582,1745397038023,-670.19085,0.0002,2]
[358705583,1745397038035,-1728.65,0.0002,2]
[358705584,1745397038117,-761.39912051,0.0002,2]
[358705585,1745397038173,-918.81817322,0.0002,2]
[358705586,1745397038186,-1255843.57766554,0.0002,2]
[358705587,1745397038197,-7209.26424531,0.0002,2]
[358705588,1745397038206,-300.99738329,0.0002,2]
[358705589,1745397038215,-1481.43211323,0.0002,2]
[358705590,1745397038225,-2757842.98114248,0.0002,2]
[358705591,1745397038237,-63456.35624953,0.0002,2]
[358705592,1745397038247,-650.53048022,0.0002,2]
[358705593,1745397038256,-151.0,0.0002,2]
[358705594,1745397038266,-151.0,0.0002,2]
[358705595,1745397038276,-196.90701759,0.0002,2]
[358705596,1745397038286,-21752.54542446,0.0002,2]
[358705597,1745397038296,-474.95884633,0.00020099,2]
[358705598,1745397038305,-500.0,0.00020219,2]
[358705599,1745397038315,-221.45,0.00020249,2]
[358705600,1745397038324,-1469.6,0.00020293,2]
[358705601,1745397038334,-500.0,0.00020311,7]
[358705602,1745397038343,-1000.0,0.00020335,2]
[358705603,1745397038352,-8289.91,0.00020335,2]
[358705604,1745397038361,-250.0,0.00020349,2]
[358705605,1745397038371,-585.13,0.00020378,2]
[358705606,1745397038380,-500.0,0.00020473,2]
[358705607,1745397038390,-500.0,0.00020473,2]
[358705608,1745397038399,-159.68770128,0.00020473,2]
[358705609,1745397038408,-300.0,0.00020499,2]
[358705610,1745397038418,-500.0,0.00020499,2]
[358705611,1745397038428,-666.0,0.00020499,2]
[358705612,1745397038439,-94989.99929617,0.000205,2]
[358705614,1745397038449,-151.0,0.000205,2]
[358705616,1745397038460,-153.59981049,0.000205,2]
[358705618,1745397038470,-207.38778015,0.000205,2]
[358705620,1745397038479,-881.73346,0.000205,2]
[358705622,1745397038489,-881.73346,0.000205,2]
[358705624,1745397038499,-151.0,0.000205,2]
[358705626,1745397038509,-151.0,0.000205,2]
[358705628,1745397038522,-151.0,0.000205,2]
[358705630,1745397038532,-15369.86,0.00020548,2]
[358705632,1745397038541,-166.66,0.00020565,2]
[358705634,1745397038551,-1173.7987,0.0002074,2]
[358705637,1745397038560,-150.0,0.00020774,2]
[358705639,1745397038570,-193.77719744,0.00020774,2]
[358705641,1745397038580,-500.0,0.00020774,2]
[358705643,1745397038590,-470.0,0.00020774,2]
[358705644,1745397038599,-500.0,0.00020774,2]
[358705646,1745397038608,-500.0,0.00020774,2]
[358705648,1745397038618,-150.0,0.00020774,2]
[358705650,1745397038627,-500.0,0.00020774,2]
[358705652,1745397038637,-500.0,0.00020774,2]
[358705654,1745397038647,-153.25602065,0.00020774,2]
[358705656,1745397038656,-500.0,0.00020774,2]
[358705658,1745397038665,-500.0,0.00020774,2]
[358705660,1745397038675,-150.0,0.00020774,2]
[358705662,1745397038684,-150.81689232,0.00020774,2]
[358705664,1745397038694,-500.0,0.00020774,2]
[358705666,1745397038703,-150.83845149,0.00020774,2]
[358705668,1745397038712,-153.69770675,0.00020774,2]
[358705670,1745397038721,-150.0,0.00020774,2]
[358705672,1745397038731,-150.0,0.00020774,2]
[358705674,1745397038740,-166.68,0.0002082,2]
[358705676,1745397038749,-176.94,0.00020855,2]
[358705678,1745397038759,-3996.35,0.00020951,2]
[358705680,1745397038771,-19999.99,0.00020951,2]
[358705682,1745397038781,-200.0,0.00021,2]
[358705684,1745397038790,-250.0,0.00021,2]
[358705686,1745397038800,-150.0,0.00021048,2]
[358705688,1745397038809,-500.0,0.00021048,2]
[358705689,1745397038818,-470.0,0.00021048,2]
[358705690,1745397038827,-500.0,0.00021048,2]
[358705691,1745397038836,-500.0,0.00021048,2]
[358705692,1745397038846,-150.0,0.00021048,2]
[358705693,1745397038855,-500.0,0.00021048,2]
[358705694,1745397038865,-500.0,0.00021048,2]
[358705695,1745397038875,-500.0,0.00021048,2]
[358705696,1745397038885,-500.0,0.00021048,2]
[358705697,1745397038894,-151.55449105,0.00021048,2]
[358705698,1745397038903,-500.0,0.00021048,2]
[358705699,1745397038913,-150.0,0.00021048,2]
[358705700,1745397038923,-223.4,0.00021075,2]
[358705701,1745397038933,-6418.44360558,0.000211,3]
[358705702,1745397038942,-150.0,0.00021322,2]
[358705703,1745397038952,-499.22846638,0.00021322,2]
[358705704,1745397038962,-470.0,0.00021322,2]
[358705705,1745397038971,-500.0,0.00021322,2]
[358705706,1745397038980,-500.0,0.00021322,2]
[358705707,1745397038989,-150.0,0.00021322,2]
[358705708,1745397038999,-500.0,0.00021322,2]
[358705709,1745397039008,-216.16724237,0.00021322,2]
[358705710,1745397039019,-500.0,0.00021322,2]
[358705711,1745397039028,-201.66130777,0.00021322,2]
[358705712,1745397039038,-500.0,0.00021322,2]
[358705713,1745397039047,-278.45960483,0.00021322,2]
[358705714,1745397039057,-709.42,0.0002137,2]
[358705715,1745397039067,-502.14341741,0.00021371,2]
[358705716,1745397039076,-499.4958612,0.00021371,2]
[358705717,1745397039085,-500.0,0.00021371,2]
[358705718,1745397039095,-500.0,0.00021371,2]
[358705719,1745397039107,-500.0,0.00021371,2]
[358705720,1745397039117,-500.0,0.00021371,2]
[358705721,1745397039127,-499.20891726,0.00021371,2]
[358705722,1745397039136,-152.14650202,0.00021371,2]
[358705723,1745397039146,-250.0,0.0002143,2]
[358705724,1745397039156,-151.0,0.00021529,2]
[358705725,1745397039165,-250.0,0.00021538,2]
[358705726,1745397039175,-150.0,0.0002156,2]
[358705727,1745397039185,-150.0,0.00021596,2]
[358705728,1745397039194,-470.0,0.00021596,2]
[358705729,1745397039204,-500.0,0.00021596,2]
[358705730,1745397039213,-500.0,0.00021596,2]
[358705731,1745397039223,-202.24647559,0.00021596,2]
[358705732,1745397039232,-500.0,0.00021596,2]
[358705733,1745397039242,-555.85374743,0.00021596,2]
[358705734,1745397039252,-312.09219957,0.00021596,2]
[358705735,1745397039261,-166.66,0.00021696,2]
[358705736,1745397039272,-500.0,0.00021856,2]
[358705737,1745397039284,-150.0,0.0002187,2]
[358705738,1745397039293,-470.0,0.0002187,2]
[358705739,1745397039303,-181.99114877,0.0002187,2]
[358705740,1745397039312,-500.0,0.0002187,2]
[358705741,1745397039322,-500.0,0.0002187,2]
[358705742,1745397039331,-150.0,0.0002189,2]
[358705743,1745397039340,-250.0,0.0002189,2]
[358705744,1745397039350,-181.21,0.00021918,2]
[358705745,1745397039359,-500.0,0.00021933,2]
[358705746,1745397039369,-8141.91692491,0.00022,15]
[358705747,1745397039378,-881.73346,0.00022,7]
[358705748,1745397039387,-881.73346,0.00022,7]
[358705749,1745397039397,-151.0,0.00022,7]
[358705750,1745397039406,-151.0,0.00022,7]
[358705751,1745397039416,-151.0,0.00022,7]
[358705752,1745397039426,-6418.44360545,0.00022072,3]
[358705753,1745397039435,-247.06943474,0.00022144,2]
[358705754,1745397039444,-470.0,0.00022144,2]
[358705755,1745397039454,-500.0,0.00022144,2]
[358705756,1745397039464,-500.0,0.00022144,2]
[358705757,1745397039473,-223.4,0.00022185,2]
[358705758,1745397039482,-470.0,0.00022418,2]
[358705759,1745397039492,-500.0,0.00022418,2]
[358705760,1745397039501,-500.0,0.00022418,2]
[358705761,1745397039511,-1469.6,0.00022557,2]
[358705762,1745397039520,-470.0,0.00022692,2]
[358705763,1745397039530,-500.0,0.00022692,2]
[358705764,1745397039540,-500.0,0.00022692,2]
[358705765,1745397039550,-166.66,0.00022828,2]
[358705766,1745397039560,-1000.0,0.00022877,2]
[358705767,1745397039569,-250.0,0.0002293,2]
[358705768,1745397039579,-470.0,0.00022966,2]
[358705769,1745397039589,-474.23047566,0.00022966,2]
[358705770,1745397039602,-500.0,0.00022966,2]
[358705771,1745397039613,-20005.93408226,0.00023,15]
[358705772,1745397039623,-300.0,0.00023,2]
[358705773,1745397039633,-200.0,0.000231,2]
[358705774,1745397039643,-470.0,0.0002324,2]
[358705775,1745397039652,-500.0,0.0002324,2]
[358705776,1745397039662,-6418.44360545,0.00023245,4]
[358705777,1745397039671,-223.4,0.00023294,2]
[358705778,1745397039680,-470.0,0.00023514,2]
[358705779,1745397039689,-500.0,0.00023514,2]
[358705780,1745397039699,-470.0,0.00023788,2]
[358705781,1745397039708,-500.0,0.00023788,2]
[358705782,1745397039718,-561.63,0.00023836,2]
[358705783,1745397039728,-166.66,0.00023959,2]
[358705784,1745397039737,-833.69145673,0.00024,2]
[358705785,1745397039746,-151.0,0.00024,7]
[358705786,1745397039757,-1828.98834803,0.00024,2]
[358705788,1745397039767,-5000.0078054,0.00024,5]
[358705789,1745397039777,-470.41034981,0.0002402,2]
[358705790,1745397039786,-470.0,0.00024062,2]
[358705791,1745397039795,-500.0,0.00024062,2]
[358705792,1745397039805,-166.68,0.00024257,2]
[358705793,1745397039814,-470.0,0.00024336,2]
[358705794,1745397039824,-500.0,0.00024336,2]
[358705795,1745397039833,-223.4,0.00024403,2]
[358705796,1745397039843,-6418.44360545,0.00024417,5]
[358705797,1745397039853,-503.0,0.00024603,2]
[358705798,1745397039863,-470.0,0.0002461,2]
[358705800,1745397039872,-500.0,0.0002461,2]
[358705801,1745397039881,-300.0,0.00024799,10]
[358705802,1745397039891,-500.0,0.00024799,2]
[358705803,1745397039902,-694.50507917,0.00024799,2]